Cogmind - Beta 12 @@@ ROGUE MODE // 2023.11.25 @ 20:38:10 Player: Mozco Result: Destroyed by P-60 Hacker with Shock Rifle Performance ------------- Evolutions (4) 2000 Regions Visited (15) 3000 Robots Destroyed (223) 1115 Value Destroyed (6955) 6955 Prototype IDs (14) 280 Alien Tech Used (0) 0 Bonus (644) 644 TOTAL SCORE: 13994 Bonus ------- High Alert Combat Kills 210 Follower Combat Kills 134 Aligned with FarCom 300 Cogmind --------- Core Integrity 0/850 Matter 5/300 Energy 100/100 System Corruption 31% Temperature Cool (0) Movement Rolling (80) Location -6/Factory Parts ------- > --- POWER (2) -------- (None) > --- PROPULSION (4) --- Wheel > --- UTILITY (7) ------ Enhanced Optical Array Advanced Signal Interpreter Thermal Shield Hacking Suite > --- WEAPON (2) ------- Mining Claw > --- INVENTORY (5) ---- Antimatter Reactor Improved Medium Treads Improved Gravmag System Improved Gravmag System Peak State ------------ > --- POWER ------------ Neutrino Core Neutrino Core > --- PROPULSION ------- Armored Treads Armored Treads Medium Treads Medium Treads > --- UTILITY ---------- Advanced Cooling System High-capacity Storage Unit Advanced Targeting Computer Makeshift Armor Plating Improved Shield Generator Makeshift System Shield Improved System Restoration Module > --- WEAPON ----------- Heavy Ion Cannon Heavy Pick > --- INVENTORY -------- Medium Treads Medium Treads Medium Treads Medium Treads Medium Treads Improved Medium Treads Cryofiber Web Compact Battery Enhanced Optical Array Advanced Signal Interpreter Energy Filter Utility Shielding Medium Reactive Plating Medium Reactive Plating Hacking Suite Skeleton Box Improved EM Pulse Cannon Heavy Ion Cannon Heavy Plasma Cannon Long-range Missile Launcher [Rating: 70] Favorites ----------- Power Neutrino Core Engine Reinforced Deuterium Engine Power Core Neutrino Core Propulsion Armored Huge Wheel Treads Light Treads Wheel Armored Huge Wheel Utility Hacking Suite Device Hardlight Generator Storage High-capacity Storage Unit Processor Advanced Targeting Computer Hackware Hacking Suite Protection Medium Reactive Plating Weapon Particle Cannon Energy Gun Medium Laser Energy Cannon Particle Cannon Ballistic Gun Light Assault Rifle Launcher Rocket Launcher Slashing Weapon Phasing Sabre Piercing Weapon Makeshift Spear Build | -11 -10 -10 -9 -9 -9 -8 -8 -7 -7 -7 -7 -6 -6 -6 -6 ------- Run | Jun Mat Min Mat Min Exi Min Mat Fac Low Low Zio Pro Fac Was Fac Slots Evolved 8 | . . . 2 . . . 2 2 . . . . 2 . . Power 1 | . . . . . . . . . . . . . 1 . . Propulsion 2 | . . . . . . . 1 1 . . . . . . . Utility 5 | . . . 2 . . . 1 1 . . . . 1 . . Weapon . | . . . . . . . . . . . . . . . . Parts Attached 233 | 6 18 5 36 5 5 . 47 31 4 6 7 5 29 21 8 Power 20 | 1 2 3 2 1 . . 3 1 1 2 . . 3 1 . Engine 12 | 1 2 3 1 1 . . 2 1 1 . . . . . . Core 8 | . . . 1 . . . 1 . . 2 . . 3 1 . Reactor . | . . . . . . . . . . . . . . . . Propulsion 62 | 2 4 1 13 . 2 . 18 4 . 1 . . 6 9 2 Treads 54 | 2 4 1 13 . 2 . 16 1 . . . . 6 9 . Leg . | . . . . . . . . . . . . . . . . Wheel 8 | . . . . . . . 2 3 . 1 . . . . 2 Hover . | . . . . . . . . . . . . . . . . Flight . | . . . . . . . . . . . . . . . . Utility 69 | 1 3 1 12 . 2 . 10 14 . 2 4 2 10 4 4 Device 28 | . 2 1 5 . 1 . 2 7 . . 3 1 3 2 1 Storage 5 | 1 1 . . . . . 1 . . . . . 1 1 . Processor 5 | . . . . . . . . 2 . 1 . . . . 2 Hackware 10 | . . . 3 . . . 2 2 . . . . 2 . 1 Protection 21 | . . . 4 . 1 . 5 3 . 1 1 1 4 1 . Artifact . | . . . . . . . . . . . . . . . . Weapon 82 | 2 9 . 9 4 1 . 16 12 3 1 3 3 10 7 2 Energy Gun 2 | 1 . . 1 . . . . . . . . . . . . Energy Cannon 49 | . 5 . 8 2 1 . 10 9 1 1 . 2 6 4 . Ballistic Gun 4 | 1 3 . . . . . . . . . . . . . . Ballistic Cannon . | . . . . . . . . . . . . . . . . Launcher 16 | . . . . 2 . . 6 3 2 . . 1 . 2 . Special Weapon . | . . . . . . . . . . . . . . . . Impact Weapon . | . . . . . . . . . . . . . . . . Slashing Weapon 7 | . 1 . . . . . . . . . 1 . 3 . 2 Piercing Weapon 4 | . . . . . . . . . . . 2 . 1 1 . Special Melee Weapon . | . . . . . . . . . . . . . . . . Unidentified Prototypes 4 | . . . 2 . 1 . . 1 . . . . . . . Parts Lost 40 | . 1 1 2 1 . . 14 . . . . 1 1 18 1 Power 4 | . . . . 1 . . 2 . . . . . . 1 . Propulsion 12 | . . . . . . . 5 . . . . . 1 5 1 Utility 16 | . . 1 . . . . 6 . . . . 1 . 8 . Weapon 8 | . 1 . 2 . . . 1 . . . . . . 4 . Highest Loss Streak 11 | . 1 1 1 1 . . 11 . . . . 1 1 6 1 To Critical Strikes 1 | . . . . . . . . . . . . . . 1 . Average Slot Usage (%) 86 | . 98 99 98 99 99 100 95 83 84 84 84 84 89 43 19 Engine 6 | . 14 14 10 10 11 11 8 6 7 2 . . . . . Core 2 | . . . . . . . . . . 5 7 7 12 2 . Treads 11 | . 28 28 21 22 22 22 21 . . . . . 8 10 . Wheel 7 | . . . . . . . 2 14 15 15 15 15 8 . 4 Device 11 | . 12 13 7 11 11 11 12 8 23 23 23 23 10 1 1 Storage 8 | . 14 14 11 11 11 11 9 7 7 7 7 7 6 11 . Processor 3 | . . . . . . . . 8 7 7 7 7 6 5 4 Hackware 8 | . . . 17 11 11 11 12 12 . . . . 10 1 2 Protection 7 | . . . 7 11 10 11 10 6 7 7 7 7 10 5 . Energy Cannon 13 | . 10 28 21 21 21 22 16 14 9 13 7 8 9 2 . Naked Turns 342 | . . . . . . . . . . . . . . 49 293 Heaviest Build 109 | 11 34 36 42 39 38 38 94 100 100 99 86 82 109 95 6 Greatest Support 96 | 40 40 40 40 40 40 40 63 56 56 56 56 56 96 96 20 Greatest Overweight (x) 19 | . . . 1 . . . 3 3 1 1 1 1 4 19 . Average Overweight (x) . | . . . . . . . 1 1 1 1 1 1 1 . . Largest Inventory Capacity 20 | 8 15 15 15 15 15 15 20 20 20 20 20 20 20 20 5 Average Capacity 17 | 6 14 15 15 15 15 15 19 20 20 20 20 20 20 18 5 Most Carried 20 | 5 15 15 15 15 15 15 20 20 18 20 20 20 20 20 5 Average Carried 16 | 2 12 14 14 14 14 15 18 19 18 19 19 19 19 10 4 Final Capacity 20 | 8 15 15 15 15 15 15 20 20 20 20 20 20 20 5 5 Final Carried 20 | 5 15 14 15 14 15 15 20 18 18 20 20 20 20 5 4 Class Distribution -------------------- 38% | Mutant 24% | Derelict-Mutant 20% | Hacker-Mutant 16% | Scavenger-Mutant Dominant Class ---------------- Mutant | -10/Materials Mutant | -10/Mines Hacker-Mutant | -9/Materials Scavenger-Mutant | -9/Mines Scavenger-Mutant | -9/Exiles Scavenger-Mutant | -8/Mines Scavenger-Mutant | -8/Materials Hacker-Mutant | -7/Factory Mutant | -7/Lower Caves Mutant | -7/Lower Caves Derelict-Mutant | -7/Zion Derelict-Mutant | -6/Proximity Caves Derelict-Mutant | -6/Factory Mutant | -6/Waste Mutant | -6/Factory Resources | -11 -10 -10 -9 -9 -9 -8 -8 -7 -7 -7 -7 -6 -6 -6 -6 ----------- Run | Jun Mat Min Mat Min Exi Min Mat Fac Low Low Zio Pro Fac Was Fac Matter Collected 2837 | 229 262 50 331 91 . . 728 443 96 88 50 101 293 . 75 Remotely . | . . . . . . . . . . . . . . . . Salvage Created 9446 | . 966 431 1878 254 . . 1380 1927 365 213 . 241 905 814 72 Parts 503 | . 59 28 130 19 . . 76 85 14 14 . 15 45 12 6 Haulers Intercepted 14 | . 2 . 6 . . . 4 2 . . . . . . . Recyclers Shooed 8 | . . . 7 . . . . 1 . . . . . . . Parts Field Recycled . | . . . . . . . . . . . . . . . . Retrieved Matter . | . . . . . . . . . . . . . . . . Parts Self-Destructed 33 | . . . . . . . . . 12 8 . 13 . . . Prevented . | . . . . . . . . . . . . . . . . Kills | -11 -10 -10 -9 -9 -9 -8 -8 -7 -7 -7 -7 -6 -6 -6 -6 ------- Run | Jun Mat Min Mat Min Exi Min Mat Fac Low Low Zio Pro Fac Was Fac Combat Hostiles Destroyed 168 | . 22 11 32 11 . . 26 31 9 5 . 5 13 3 . Melee 12 | . 5 . . . . . . . . . . . 7 . . Guns 8 | . 8 . . . . . . . . . . . . . . Cannons 110 | . 9 11 32 4 . . 12 26 3 2 . 3 5 3 . AOE 34 | . . . . 6 . . 13 4 6 3 . 2 . . . Classes Destroyed 20 | . 5 5 1 . . . 3 2 . 1 . 2 . 1 . Worker 5 | . . 1 . . . . 1 1 . . . . . . 2 Builder 3 | . . . . . . . 1 2 . . . . . . . Tunneler 4 | . . 1 . 1 . . . . . . . . 1 . 1 Hauler 14 | . 2 . 6 . . . 4 2 . . . . . . . Recycler 13 | . . 1 4 . . . 3 5 . . . . . . . Minesweeper 1 | . . . . . . . . . . . . 1 . . . Operator 5 | . 2 . 2 . . . . . . . . . 1 . . Drone 1 | . . . . . . . . . . . . 1 . . . Watcher 11 | . 1 . 3 . . . 2 3 . . . . 2 . . Swarmer 35 | . 3 6 10 7 . . 3 . 2 4 . . . . . Cutter 2 | . . . . . . . 2 . . . . . . . . Grunt 81 | . 19 2 12 3 . . 14 20 4 . . 2 5 . . Duelist 5 | . . . 1 1 . . 2 . . . . . 1 . . Sentry 26 | . . 2 9 . . . 4 5 1 1 . 1 3 . . Hunter 3 | . . . . . . . . 1 . . . 1 1 . . Programmer 8 | . . . . . . . . 5 . . . . 3 . . Heavy 1 | . . . . . . . 1 . . . . . . . . Compactor 3 | . . . . . . . . . . . . . . 3 . Samaritan 3 | . . . . . . . . . . 3 . . . . . Assembled 1 | . . 1 . . . . . . . . . . . . . Thug 2 | . . . . . . . . . 2 . . . . . . Best Kill Streak 7 | . 7 4 7 5 . . 6 6 4 4 . 2 3 1 1 Combat Bots Only 6 | . 6 3 6 4 . . 4 6 4 4 . 2 3 1 . Max Kills in Single Turn 4 | . 1 1 2 4 . . 3 3 3 2 . 1 1 1 1 Gunslinging . | . . . . . . . . . . . . . . . . Exploded 3 | . . . . 3 . . 3 2 3 2 . 1 . . . Melee 1 | . 1 . . . . . . . . . . . 1 . . Uniques/NPCs Destroyed . | . . . . . . . . . . . . . . . . Combat | -11 -10 -10 -9 -9 -9 -8 -8 -7 -7 -7 -7 -6 -6 -6 -6 -------- Run | Jun Mat Min Mat Min Exi Min Mat Fac Low Low Zio Pro Fac Was Fac Damage Taken 10214 | . 664 455 982 262 . . 2147 1541 188 133 . 353 913 2406 170 Core 1655 | . 112 27 126 11 . . 275 176 14 . . 54 76 672 112 Absorbed by Shields 1139 | . . . . . . . 76 437 79 44 . 144 349 10 . Redirected to Shielding 197 | . . . 19 12 . . 107 . . . . . 26 33 . Regen/Repaired (Parts) 1412 | . 195 . 195 . . . 46 335 . . . . 641 . . Core Remaining (%) 64 | 100 . 44 . . . 65 50 . . . . 65 . . . Volleys Fired 511 | . 68 42 97 13 . . 86 97 15 15 . 22 20 36 . Largest 2 | . 2 2 2 2 . . 2 2 2 2 . 2 2 2 . Hottest 155 | . 136 136 136 136 . . 143 155 129 95 . 130 134 155 . Shots Fired 889 | . 129 58 183 23 . . 146 179 22 27 . 28 39 55 . Gun 92 | . 92 . . . . . . . . . . . . . . Cannon 752 | . 37 58 183 21 . . 129 171 18 25 . 24 39 47 . Launcher 45 | . . . . 2 . . 17 8 4 2 . 4 . 8 . Special . | . . . . . . . . . . . . . . . . Kinetic 59 | . 59 . . . . . . . . . . . . . . Thermal 777 | . 70 58 183 21 . . 129 171 18 25 . 24 31 47 . Explosive 45 | . . . . 2 . . 17 8 4 2 . 4 . 8 . Electromagnetic 8 | . . . . . . . . . . . . . 8 . . Robot Hit Streak 24 | . 8 10 12 6 . . 9 24 13 8 . 7 8 16 . Robot Miss Streak 7 | . 5 4 4 3 . . 7 3 2 1 . 4 4 2 . Penetration Max . | . . . . . . . . . . . . . . . . Secondary Targets . | . . . . . . . . . . . . . . . . Shots Hit Robots 611 | . 89 31 103 15 . . 76 137 15 21 . 19 61 41 3 Core Hits 329 | . 41 15 48 13 . . 70 67 13 10 . 11 26 10 5 Critical Kills 5 | . 1 . . 1 . . 2 . . . . . 1 . . Critical Parts Destroyed . | . . . . . . . . . . . . . . . . Critical Strikes 8 | . 3 . . 1 . . 2 . . . . . 2 . . Burn 2 | . 2 . . . . . . . . . . . . . . Meltdown 4 | . . . . 1 . . 2 . . . . . 1 . . Destroy 1 | . 1 . . . . . . . . . . . . . . Impale 1 | . . . . . . . . . . . . . 1 . . Melee Attacks 72 | . 16 . . . . . . . . . 4 1 46 2 3 Impact . | . . . . . . . . . . . . . . . . Slashing 39 | . 16 . . . . . . . . . . 1 19 . 3 Piercing 33 | . . . . . . . . . . . 4 . 27 2 . Sneak Attacks 8 | . 1 . . . . . . . . . . 1 4 . 2 Combat Hostiles 2 | . . . . . . . . . . . . . 2 . . Follow-up Attacks . | . . . . . . . . . . . . . . . . Damage Inflicted 19919 | . 1354 680 2318 671 . . 2964 5016 811 849 . 840 2079 2098 239 Guns 512 | . 512 . . . . . . . . . . . . . . Cannons 12455 | . 569 680 2311 304 . . 1652 3906 329 569 . 379 709 1047 . Explosions 4880 | . . . . 357 . . 1306 1092 482 280 . 353 . 1010 . Melee 1913 | . 271 . . . . . . . . . . 108 1338 . 196 Ramming 159 | . 2 . 7 10 . . 6 18 . . . . 32 41 43 Kinetic 273 | . 273 . . . . . . . . . . . . . . Thermal 12486 | . 808 680 2311 304 . . 1652 3906 329 569 . 379 501 1047 . Explosive 4835 | . . . . 357 . . 1261 1092 482 280 . 353 . 1010 . Electromagnetic 253 | . . . . . . . 45 . . . . . 208 . . Impact . | . . . . . . . . . . . . . . . . Slashing 1206 | . 271 . . . . . . . . . . 108 631 . 196 Piercing 707 | . . . . . . . . . . . . . 707 . . Highest Corruption 30 | . . 1 . . . . 10 3 . . . . 1 24 30 Average Corruption 9 | . . 1 . . . . 9 1 . . . . 1 20 26 Corruption Purged 4 | . . . . . . . . 3 . . . . 1 . . Corruption Blocked . | . . . . . . . . . . . . . . . . Effects 124 | . . 2 . . . . 56 4 . . . . 6 26 30 Message Errors 33 | . . . . . . . 14 1 . . . . 3 4 11 Matter Fused 26 | . . 1 . . . . 15 1 . . . . 1 3 5 Heat Flow Errors 18 | . . 1 . . . . 10 1 . . . . 1 3 2 Energy Discharges 17 | . . . . . . . 5 1 . . . . 1 8 2 Parts Rejected 3 | . . . . . . . . . . . . . . 2 1 Data Loss (minor) 12 | . . . . . . . 6 . . . . . . 4 2 Data Loss (major) 5 | . . . . . . . 1 . . . . . . 1 3 Misfires 3 | . . . . . . . 3 . . . . . . . . Alerts 1 | . . . . . . . . . . . . . . . 1 Misdirections 3 | . . . . . . . . . . . . . . . 3 Weapon Failures 3 | . . . . . . . 2 . . . . . . 1 . Overload Shots 4 | . . . . . . . . 3 1 . . . . . . Overflow Damage 566 | . 17 3 44 16 . . 33 123 . 151 . 87 92 . . Projectiles 324 | . 1 3 44 . . . 33 121 . 98 . 1 23 . . Explosions 71 | . . . . 16 . . . 2 . 53 . . . . . Melee 171 | . 16 . . . . . . . . . . 86 69 . . Knockbacks . | . . . . . . . . . . . . . . . . Impact . | . . . . . . . . . . . . . . . . Kinetic . | . . . . . . . . . . . . . . . . Secondary . | . . . . . . . . . . . . . . . . Self-Inflicted Damage 311 | . . . . 37 . . 78 9 . 18 . . . 140 29 Shots 6 | . . . . 1 . . 2 . . 1 . . . 2 . Rammed 34 | . 1 . 5 2 . . 2 1 . . . . 5 8 10 Targets Rammed 34 | . 1 . 5 2 . . 2 1 . . . . 5 8 10 Kicked . | . . . . . . . . . . . . . . . . Crushed . | . . . . . . . . . . . . . . . . Highest Temperature 352 | . 212 228 339 18 . . 302 308 5 . . . 253 352 211 Average Temperature 76 | . 76 76 50 6 . . 68 91 4 . . . 79 141 93 Received Heat Transfer 2369 | . 303 108 240 51 . . 690 568 93 33 . 74 209 . . Effects 8 | . . . 1 . . . . 2 . . . . . 5 . Shutdowns 1 | . . . . . . . . . . . . . . 1 . Energy Bleed 4 | . . . . . . . . 2 . . . . . 2 . Interference 1 | . . . . . . . . . . . . . . 1 . Short Circuit 1 | . . . 1 . . . . . . . . . . . . Damage (minor) 1 | . . . . . . . . . . . . . . 1 . Siege Activations . | . . . . . . . . . . . . . . . . Robots Corrupted . | . . . . . . . . . . . . . . . . Combat Hostiles . | . . . . . . . . . . . . . . . . Parts Fried 1 | . . . . . . . . . . . . . 1 . . Impact Corruptions . | . . . . . . . . . . . . . . . . Robots Melted 5 | . . . . 1 . . 2 1 . . . . 1 . . Combat Hostiles 4 | . . . . 1 . . 1 1 . . . . 1 . . Parts Melted 28 | . 2 1 4 3 . . 5 6 . 2 . 3 2 . . Heat Transferred 19326 | . 1813 1221 3959 518 . . 2849 5058 420 777 . 518 666 1527 . Parts Sabotaged . | . . . . . . . . . . . . . . . . Parts Stolen . | . . . . . . . . . . . . . . . . Parts Stripped . | . . . . . . . . . . . . . . . . Power Chain Reactions . | . . . . . . . . . . . . . . . . Missiles Intercepted . | . . . . . . . . . . . . . . . . Alert | -11 -10 -10 -9 -9 -9 -8 -8 -7 -7 -7 -7 -6 -6 -6 -6 ------- Run | Jun Mat Min Mat Min Exi Min Mat Fac Low Low Zio Pro Fac Was Fac Peak Influence 677 | . 346 361 677 478 . . 475 503 . . . . 560 178 41 Initial 506 | . . 96 62 192 . . . 179 . . . . 506 144 10 Average 248 | . 197 233 387 345 . . 254 160 . . . . 373 43 14 Maximum Alert Level 2 | . 1 1 2 2 . . 2 2 . . . . 2 . . Low Security (%) 40 | 100 49 45 14 16 . 100 38 63 . . . . . 100 100 Level 1 41 | . 50 54 35 44 . . 45 32 . . . . 69 . . Level 2 18 | . . . 49 39 . . 15 4 . . . . 30 . . Level 3 . | . . . . . . . . . . . . . . . . Level 4 . | . . . . . . . . . . . . . . . . Level 5 . | . . . . . . . . . . . . . . . . High Security . | . . . . . . . . . . . . . . . . Max Security . | . . . . . . . . . . . . . . . . Squads Dispatched 36 | . 7 . 5 . . . 6 15 . . . . 2 . 1 Investigation 14 | . 5 . 3 . . . 2 4 . . . . . . . Extermination 9 | . . . . . . . . 6 . . . . 2 . 1 Reinforcement 11 | . 2 . 2 . . . 4 3 . . . . . . . Assault . | . . . . . . . . . . . . . . . . Garrison 2 | . . . . . . . . 2 . . . . . . . Intercept . | . . . . . . . . . . . . . . . . Searches Triggered 1 | . . . . . . . . . . . . . 1 . . Construction Impeded 1 | . . . . . . . 1 . . . . . . . . Haulers Reinforced 1 | . . . . . . . . 1 . . . . . . . Active Scanning Responses . | . . . . . . . . . . . . . . . . Cargo Convoy Interrupts . | . . . . . . . . . . . . . . . . Stealth | -11 -10 -10 -9 -9 -9 -8 -8 -7 -7 -7 -7 -6 -6 -6 -6 --------- Run | Jun Mat Min Mat Min Exi Min Mat Fac Low Low Zio Pro Fac Was Fac Distress Signals 10 | . 2 . 2 1 . . 3 1 . . . 1 . . . Communications Jammed . | . . . . . . . . . . . . . . . . Distress Signals . | . . . . . . . . . . . . . . . . Times Spotted 229 | . 31 11 46 13 . . 35 39 10 4 . 7 25 6 2 Peak Tracking Total 7 | . 3 3 5 4 . . 5 7 4 3 . 2 4 4 1 Tactical Retreats 11 | . . . 1 1 . . . 4 . . . . 4 1 . Traps | -11 -10 -10 -9 -9 -9 -8 -8 -7 -7 -7 -7 -6 -6 -6 -6 ------- Run | Jun Mat Min Mat Min Exi Min Mat Fac Low Low Zio Pro Fac Was Fac Traps Triggered 14 | . 2 . 3 . . . 2 2 . . . . 2 . 3 Indirectly . | . . . . . . . . . . . . . . . . Trap Hack Attempts . | . . . . . . . . . . . . . . . . Triggered . | . . . . . . . . . . . . . . . . Disarmed 5 | . . . . . . . . 5 . . . . . . . Reprogrammed . | . . . . . . . . . . . . . . . . Reused . | . . . . . . . . . . . . . . . . Traps Extracted . | . . . . . . . . . . . . . . . . Installed . | . . . . . . . . . . . . . . . . Triggered 1 | . . . . . . . . . 1 . . . . . . Machines | -11 -10 -10 -9 -9 -9 -8 -8 -7 -7 -7 -7 -6 -6 -6 -6 ---------- Run | Jun Mat Min Mat Min Exi Min Mat Fac Low Low Zio Pro Fac Was Fac Machines Disabled 8 | . 1 . 1 . . . 4 2 . . . . . . . Max in Single Turn 1 | . 1 . 1 . . . 1 1 . . . . . . . Garrison Access 3 | . . . . . . . 1 1 . . . . 1 . . Machines Repaired . | . . . . . . . . . . . . . . . . Machines Sabotaged . | . . . . . . . . . . . . . . . . Overloaded Fab Kills . | . . . . . . . . . . . . . . . . Hacking | -11 -10 -10 -9 -9 -9 -8 -8 -7 -7 -7 -7 -6 -6 -6 -6 --------- Run | Jun Mat Min Mat Min Exi Min Mat Fac Low Low Zio Pro Fac Was Fac Machines Accessed 67 | . 9 . 13 . . . 12 20 . . 1 . 9 . 3 Terminals 42 | . 6 . 9 . . . 8 12 . . . . 5 . 2 Fabricators 2 | . . . . . . . . 1 . . . . . . 1 Repair Stations 7 | . 1 . 1 . . . 1 3 . . . . 1 . . Recycling Units 5 | . 2 . 2 . . . . 1 . . . . . . . Scanalyzers 6 | . . . 1 . . . 2 1 . . . . 2 . . Garrison Access 4 | . . . . . . . 1 2 . . . . 1 . . Total Hacks 259 | . 30 . 60 . . . 44 71 . . 3 . 46 . 5 Successful 166 | . 17 . 43 . . . 28 40 . . 3 . 35 . . Failed 91 | . 12 . 16 . . . 16 31 . . . . 11 . 5 Catastrophic 9 | . 1 . . . . . . 6 . . . . 1 . 1 Database Lockouts 2 | . 1 . 1 . . . . . . . . . . . . Manual 100 | . 10 . 26 . 1 . 24 28 . . . . 11 . . Terminals 161 | . 20 . 36 . . . 32 52 . . . . 18 . 3 Fabricators 5 | . . . . . . . . 3 . . . . . . 2 Repair Stations 42 | . 5 . 5 . . . 2 8 . . . . 22 . . Recycling Units 9 | . 5 . 3 . . . . 1 . . . . . . . Scanalyzers 31 | . . . 16 . . . 7 4 . . . . 4 . . Garrison Access 8 | . . . . . . . 3 3 . . . . 2 . . Terminal Hacks 67 | . 6 . 16 . . . 16 19 . . 3 . 7 . . Part Schematic 6 | . . . . . . . 1 2 . . 3 . . . . Robot Analysis 19 | . 1 . 7 . . . 5 4 . . . . 2 . . Prototype ID Bank 7 | . 1 . 2 . . . 2 1 . . . . 1 . . Level Access Points 1 | . . . . . . . . . . . . . 1 . . Branch Access Points 4 | . 1 . 1 . . . 1 1 . . . . . . . Emergency Access Points 4 | . 1 . 1 . . . 1 1 . . . . . . . Terminal Index 2 | . . . . . . . 1 1 . . . . . . . Repair Station Index 1 | . . . 1 . . . . . . . . . . . . Scanalyzer Index 1 | . . . . . . . 1 . . . . . . . . Garrison Index 1 | . . . . . . . . 1 . . . . . . . Alert Level 3 | . . . . . . . . 3 . . . . . . . Unreport Threat 4 | . 1 . 1 . . . . 2 . . . . . . . Locate Traps 1 | . . . . . . . 1 . . . . . . . . Disarm Traps 1 | . . . . . . . . 1 . . . . . . . Recall Investigation 1 | . . . 1 . . . . . . . . . . . . Registered Prototypes 1 | . . . 1 . . . . . . . . . . . . Zone Layout 10 | . 1 . 1 . . . 3 2 . . . . 3 . . Fabricator Hacks 3 | . . . . . . . . 3 . . . . . . . Network Status 1 | . . . . . . . . 1 . . . . . . . Load Schematic 1 | . . . . . . . . 1 . . . . . . . Build 1 | . . . . . . . . 1 . . . . . . . Repair Station Hacks 35 | . 4 . 5 . . . 2 6 . . . . 18 . . Scan Component 18 | . 2 . 3 . . . 1 3 . . . . 9 . . Repair 17 | . 2 . 2 . . . 1 3 . . . . 9 . . Recycling Unit Hacks 4 | . 3 . 1 . . . . . . . . . . . . Report Inventory 3 | . 2 . 1 . . . . . . . . . . . . Retrieve Components 1 | . 1 . . . . . . . . . . . . . . Scanalyzer 29 | . . . 16 . . . 6 4 . . . . 3 . . Insert Component 15 | . . . 8 . . . 3 2 . . . . 2 . . Analyze 14 | . . . 8 . . . 3 2 . . . . 1 . . Garrison Access Hacks 3 | . . . . . . . 1 1 . . . . 1 . . Seal Access 3 | . . . . . . . 1 1 . . . . 1 . . Unauthorized Hacks 25 | . 4 . 5 . . . 3 7 . . . . 6 . . Terminals 21 | . 2 . 3 . . . 3 7 . . . . 6 . . Assimilate 2 | . . . . . . . . 1 . . . . 1 . . Botnet 18 | . 2 . 3 . . . 3 6 . . . . 4 . . Operators 1 | . . . . . . . . . . . . . 1 . . Fabricators . | . . . . . . . . . . . . . . . . Repair Stations . | . . . . . . . . . . . . . . . . Recycling Units 4 | . 2 . 2 . . . . . . . . . . . . Tunnel 4 | . 2 . 2 . . . . . . . . . . . . Scanalyzers . | . . . . . . . . . . . . . . . . Garrison Access . | . . . . . . . . . . . . . . . . Data Cores Recovered 1 | . . . . . . . . . . . . . 1 . . Used 1 | . . . . . . . . . . . . . 1 . . Hacking Detections 60 | . 8 . 11 . . . 12 17 . . . . 9 . 3 Full Trace Events 6 | . 2 . . . . . 1 3 . . . . . . . Feedback Events . | . . . . . . . . . . . . . . . . Feedback Blocked . | . . . . . . . . . . . . . . . . Robot Schematics Acquired . | . . . . . . . . . . . . . . . . Robots Built . | . . . . . . . . . . . . . . . . Authchips . | . . . . . . . . . . . . . . . . Time . | . . . . . . . . . . . . . . . . Total Robot Build Rating . | . . . . . . . . . . . . . . . . Part Schematics Acquired 18 | . . . 8 . . . 3 3 . . 3 . 1 . . Parts Built 1 | . . . . . . . . 1 . . . . . . . Authchips . | . . . . . . . . . . . . . . . . Time 53 | . . . . . . . . 53 . . . . . . . Total Part Build Rating 6 | . . . . . . . . 6 . . . . . . . Parts Repaired 17 | . 2 . 2 . . . 1 3 . . . . 9 . . Time 712 | . 52 . 64 . . . 32 132 . . . . 432 . . Parts Recycled . | . . . . . . . . . . . . . . . . Recycled Matter . | . . . . . . . . . . . . . . . . Retrieved Matter . | . . . . . . . . . . . . . . . . Retrieved Components 4 | . 4 . . . . . . . . . . . . . . Parts Scanalyzed 14 | . . . 8 . . . 3 2 . . . . 1 . . Part Schematics Acquired 13 | . . . 8 . . . 3 1 . . . . 1 . . Parts Damaged . | . . . . . . . . . . . . . . . . Bothacking | -11 -10 -10 -9 -9 -9 -8 -8 -7 -7 -7 -7 -6 -6 -6 -6 ------------ Run | Jun Mat Min Mat Min Exi Min Mat Fac Low Low Zio Pro Fac Was Fac Used RIF Installer . | . . . . . . . . . . . . . . . . Robots Hacked . | . . . . . . . . . . . . . . . . Non-combat . | . . . . . . . . . . . . . . . . Combat . | . . . . . . . . . . . . . . . . Robot Hacks Applied . | . . . . . . . . . . . . . . . . Relay Couplers Released . | . . . . . . . . . . . . . . . . Fabnet Peak Effective % . | . . . . . . . . . . . . . . . . Robots Rewired . | . . . . . . . . . . . . . . . . Allies Hacked . | . . . . . . . . . . . . . . . . Hacks Repelled . | . . . . . . . . . . . . . . . . Allies | -11 -10 -10 -9 -9 -9 -8 -8 -7 -7 -7 -7 -6 -6 -6 -6 -------- Run | Jun Mat Min Mat Min Exi Min Mat Fac Low Low Zio Pro Fac Was Fac Total Allies 4 | . . . . 3 . . . 1 . . . . . . . Largest Group 3 | . . . . 3 3 3 3 1 . . . . . . . Highest-Rated Group 40 | . . . . 40 40 40 40 10 . . . . . . . Highest-Rated Ally 16 | . . . . 16 16 16 16 10 . . . . . . . Total Orders . | . . . . . . . . . . . . . . . . Ally Attacks 44 | . . . . 6 . . 38 . . . . . . . . Total Damage 360 | . . . . 58 . . 302 . . . . . . . . Kills 7 | . . . . 2 . . 5 . . . . . . . . Allies Corrupted . | . . . . . . . . . . . . . . . . Allies Melted . | . . . . . . . . . . . . . . . . Intel | -11 -10 -10 -9 -9 -9 -8 -8 -7 -7 -7 -7 -6 -6 -6 -6 ------- Run | Jun Mat Min Mat Min Exi Min Mat Fac Low Low Zio Pro Fac Was Fac Robot Analysis Total 19 | . 1 . 7 . . . 5 4 . . . . 2 . . Derelict Logs Recovered 6 | . . 2 . 2 . . . . . 1 1 . . . . Drone Launches . | . . . . . . . . . . . . . . . . Drone Recoveries . | . . . . . . . . . . . . . . . . Exploration | -11 -10 -10 -9 -9 -9 -8 -8 -7 -7 -7 -7 -6 -6 -6 -6 ------------- Run | Jun Mat Min Mat Min Exi Min Mat Fac Low Low Zio Pro Fac Was Fac Turns Passed 17552 | 82 1142 570 2174 578 664 42 2269 3292 351 772 1540 345 2415 775 541 Spaces Moved 10965 | 45 528 287 992 330 407 22 1133 2381 267 619 1304 243 1417 118 872 Core 723 | 3 . . . . . . . . . . . . . 87 633 Treads 3604 | 42 528 287 992 330 407 22 742 . . . . . 223 31 . Legs . | . . . . . . . . . . . . . . . . Wheels 6638 | . . . . . . . 391 2381 267 619 1304 243 1194 . 239 Hover . | . . . . . . . . . . . . . . . . Flight . | . . . . . . . . . . . . . . . . Fastest Speed 50 | 50 160 160 160 160 160 160 125 115 115 115 115 115 115 50 50 Average Speed 130 | 152 160 160 171 160 160 160 168 115 115 115 115 115 136 94 58 Slowest Speed 1000 | 160 160 160 240 160 160 160 240 145 115 115 115 115 490 1000 80 Overloaded Moves . | . . . . . . . . . . . . . . . . Propulsion Burnouts . | . . . . . . . . . . . . . . . . Robots Hopped . | . . . . . . . . . . . . . . . . Cave-ins Triggered 5 | . . . . . . . 1 . . . . . . 4 . Exploration Rate (%) 54 | 4 87 70 75 63 69 13 72 52 43 73 84 44 30 74 15 Regions Visited 15 Branch Regions 8 Pre-discovered Areas 10 | . 2 2 2 2 . . . . . 1 1 . . . . Known Exits Taken 4 | . 1 . 1 . . . . 1 . . . 1 . . . Unknown Exits Taken 9 | 1 . 1 . 1 1 1 1 . 1 1 1 . . . . Scrap Searched 11 | . . . . 1 . . . . 1 5 3 1 . . . Spaces Dug 48 | . . . . . . . 18 8 . 13 . . 1 8 . Terrain Destroyed 460 | . . . . 11 . . 128 108 31 36 . 41 5 100 . Melee 3 | . . . . . . . . . . . . . 1 2 . Projectile 34 | . . . . . . . 3 8 4 2 . 3 4 10 . AOE 423 | . . . . 11 . . 125 100 27 34 . 38 . 88 . Terrain Rammed 4 | . . . . . . . . . . . . . . 3 1 Walls Destroyed 1 | . . . . . . . . . . . . . . . 1 Machines Disabled . | . . . . . . . . . . . . . . . . Actions | -11 -10 -10 -9 -9 -9 -8 -8 -7 -7 -7 -7 -6 -6 -6 -6 --------- Run | Jun Mat Min Mat Min Exi Min Mat Fac Low Low Zio Pro Fac Was Fac Total 13136 | 55 675 341 1296 354 421 29 1342 2742 286 653 1339 277 1772 656 898 Wait 1069 | . 23 1 94 3 . 8 29 194 . . 20 . 229 466 2 Move 10950 | 44 527 286 991 329 406 21 1132 2380 266 618 1303 242 1417 116 872 Hop . | . . . . . . . . . . . . . . . . Pick Up 127 | 5 11 2 30 1 4 . 24 19 . 6 1 4 15 3 2 Fast Attach 59 | 6 3 1 9 . 2 . 8 5 1 3 3 . 8 5 5 Attach 49 | . 1 . 6 1 1 . 14 5 . . . 1 4 13 3 Detach 3 | . . . 1 . 1 . 1 . . . . . . . . Swap 125 | . 14 4 21 4 2 . 25 21 3 3 4 4 17 3 . Drop 132 | . 11 5 42 1 5 . 21 20 1 8 4 3 11 . . Fire 511 | . 68 42 97 13 . . 86 97 15 15 . 22 20 36 . Melee 72 | . 16 . . . . . . . . . 4 1 46 2 3 Ram 22 | . . . . . . . . 1 . . . . . 10 11 Kick . | . . . . . . . . . . . . . . . . Crush 16 | . 1 . 5 2 . . 2 . . . . . 5 1 . Escape Stasis 1 | . . . . . . . . . . . . . . 1 . Rewire . | . . . . . . . . . . . . . . . . Trap . | . . . . . . . . . . . . . . . . Miscellaneous . | . . . . . . . . . . . . . . . . Route ------- -11/Junkyard -10/Materials (discovered 5 exits: *Mat x3 / *Min x2) -10/Mines -9/Materials (discovered 5 exits: *Mat x3 / *Min x2) -9/Mines (discovered 2 exits: *Mat / *Exi) -9/Exiles -8/Mines -8/Materials (discovered 2 exits: *Fac x2) -7/Factory (discovered 5 exits: *Fac x2 / *Sto / *Low x2) -7/Lower Caves -7/Lower Caves -7/Zion -6/Proximity Caves -6/Factory (discovered 4 exits: Fac x4) -6/Waste -6/Factory History --------- Turn | Location | Event 2 | -11/Junkyard | Met Revision 17 27 | -11/Junkyard | Discovered new exit (range 16) 83 | -11/Junkyard | Entered Materials 300 | -10/Materials | Build established: Mutant 390 | -10/Materials | Discovered new exit (range 14) 402 | -10/Materials | Central database locked down 630 | -10/Materials | Identified exit to Mines 790 | -10/Materials | Discovered new exit (range 16) 837 | -10/Materials | Repaired Lgt. Treads? 930 | -10/Materials | Repaired Lgt. Treads 1010 | -10/Materials | Discovered new exit (range 13) 1225 | -10/Materials | Entered Mines 1228 | -10/Mines | Core integrity fell below 50% 1388 | -10/Mines | Learned location of Zion (-7) 1608 | -10/Mines | Learned location of Mines (-8) 1626 | -10/Mines | Excavation squad dispatched 1626 | -10/Mines | A large section of the Mines collapsed 1781 | -10/Mines | Discovered new exit (range 12) 1795 | -10/Mines | Entered Materials 1795 | -9/Materials | Evolved 2 slots: Utility x2 2190 | -9/Materials | Discovered new exit (range 16) 2191 | -9/Materials | Identified exit to Mines 2322 | -9/Materials | Build established: Hacker-Mutant 3117 | -9/Materials | Discovered new exit (range 16) 3278 | -9/Materials | Build established: Mutant 3439 | -9/Materials | Central database locked down 3616 | -9/Materials | Discovered new exit (range 7) 3689 | -9/Materials | Repaired Particle Cannon 3722 | -9/Materials | Repaired Particle Cannon 3969 | -9/Materials | Entered Mines 4232 | -9/Mines | Assisted by bots powering up and referring to "LRC-V3" 4440 | -9/Mines | Discovered new exit (range 5) 4457 | -9/Mines | Build established: Scavenger-Mutant 4536 | -9/Mines | Deemed a non-threat by the Exiles lab entrance 4537 | -9/Mines | Discovered new exit (range 5) 4547 | -9/Mines | Entered Exiles 4547 | -9/Exiles | Accompanied by 3 allies 4586 | -9/Exiles | Met 8R-AWN 4615 | -9/Exiles | Met EX-HEX 4656 | -9/Exiles | Met EX-BIN 4693 | -9/Exiles | Aligned with FarCom system 4695 | -9/Exiles | Given EX-Vault access code 4733 | -9/Exiles | Opened EX-Vault 4739 | -9/Exiles | Found Prototype Device 4739 | -9/Exiles | Identified Skeleton Box 4778 | -9/Exiles | Warned to stay clear of 0b10 Research branches 4821 | -9/Exiles | Met EX-DEC 5122 | -9/Exiles | Discovered new exit (range 10) 5211 | -9/Exiles | Left Exiles lab with Skeleton Box 5211 | -9/Exiles | Entered Mines 5211 | -8/Mines | Accompanied by 3 allies 5237 | -8/Mines | Discovered new exit (range 6) 5253 | -8/Mines | Entered Materials 5253 | -8/Materials | Accompanied by 3 allies 5253 | -8/Materials | Evolved 2 slots: Propulsion x1, Utility x1 6249 | -8/Materials | Discovered new exit (range 5) 6305 | -8/Materials | Crushed by falling debris 6305 | -8/Materials | System corruption reached 10% 6387 | -8/Materials | Lost 11 parts (2p5n4u) 6970 | -8/Materials | Discovered new exit (range 8) 7141 | -8/Materials | Repaired Rocket Launcher? 7229 | -8/Materials | Build established: Mutant 7522 | -8/Materials | Entered Factory 7522 | -7/Factory | Evolved 2 slots: Propulsion x1, Utility x1 8069 | -7/Factory | Repaired Rnf. Deuterium Engine 8235 | -7/Factory | Build established: Hacker-Mutant 8435 | -7/Factory | Discovered new exit (range 11) 8755 | -7/Factory | Identified exit to Factory 9133 | -7/Factory | Fabricated Adv. Cooling System? 9140 | -7/Factory | Discovered exit to Factory (range 4) 9354 | -7/Factory | Identified exit to Storage 9354 | -7/Factory | Identified exit to Lower Caves 9499 | -7/Factory | Garrison activated, responded to threat 9911 | -7/Factory | Repaired Arm. Huge Wheel? 9963 | -7/Factory | Repaired Arm. Huge Wheel? 10784 | -7/Factory | Garrison activated, responded to threat 10814 | -7/Factory | Entered Lower Caves 10938 | -7/Lower Caves | Build established: Mutant 10954 | -7/Lower Caves | Attracted the attention of an 0b10 checkpoint 11048 | -7/Lower Caves | Encountered a Warlord checkpoint 11049 | -7/Lower Caves | Discovered new exit (range 16) 11165 | -7/Lower Caves | Entered another Lower Caves area 11456 | -7/Lower Caves | Spotted B-75 Beast 11618 | -7/Lower Caves | Discovered new exit (range 13) 11895 | -7/Lower Caves | Attracted the attention of an 0b10 checkpoint 11937 | -7/Lower Caves | Entered Zion 11963 | -7/Zion | Learned Factory stockpile data 12081 | -7/Zion | Learned location of Recycling (-7) 12327 | -7/Zion | Remotely autohacked Sealed Blast Doors 12337 | -7/Zion | Build established: Derelict-Mutant 12342 | -7/Zion | Remotely autohacked Sealed Blast Doors 12342 | -7/Zion | Remotely autohacked Sealed Blast Doors 12342 | -7/Zion | Remotely autohacked Sealed Blast Doors 12445 | -7/Zion | Given the Hacking Drone Bay 12959 | -7/Zion | Discovered new exit (range 15) 13477 | -7/Zion | Entered Proximity Caves 13550 | -6/Proximity Caves | Spotter reported a threat 13575 | -6/Proximity Caves | Spotter reported a threat 13754 | -6/Proximity Caves | Attracted the attention of an 0b10 checkpoint 13756 | -6/Proximity Caves | Spotter reported a threat 13809 | -6/Proximity Caves | Discovered exit to Factory (range 12) 13822 | -6/Proximity Caves | Entered Factory 13822 | -6/Factory | Evolved 2 slots: Power x1, Utility x1 14000 | -6/Factory | Repaired Neutrino Core 14053 | -6/Factory | Repaired Hvy. Ion Cannon 14110 | -6/Factory | Repaired Neutrino Core? 14172 | -6/Factory | Search patrols dispatched 14193 | -6/Factory | Repaired Adv. Cooling System? 14261 | -6/Factory | Repaired Energy Filter 14316 | -6/Factory | Repaired Hvy. Ion Cannon 14361 | -6/Factory | Repaired Imp. EM Pulse Cannon 14435 | -6/Factory | Repaired Hvy. Missile Launcher? 14528 | -6/Factory | Repaired Imp. Shield Generator 15632 | -6/Factory | Identified exit to Factory 16237 | -6/Factory | Sucked down chute 16237 | -6/Factory | Entered Waste 16255 | -6/Waste | Spotted C-40 Crusher 16276 | -6/Waste | Spotted C-40 Crusher 16285 | -6/Waste | Spotted C-40 Crusher 16295 | -6/Waste | Crushed by Compactor (1 part destroyed, 1 dropped) 16306 | -6/Waste | Crushed by Compactor (1 part destroyed, 2 dropped) 16311 | -6/Waste | Crushed by Compactor (1 part destroyed, 1 dropped) 16314 | -6/Waste | Crushed by Compactor (1 part destroyed, 2 dropped) 16345 | -6/Waste | Lost 4 parts (2n2u) 16353 | -6/Waste | Destroyed C-40 Crusher 16355 | -6/Waste | Crushed by falling debris 16358 | -6/Waste | Crushed by Compactor (1 part destroyed, 1 dropped) 16379 | -6/Waste | Destroyed C-40 Crusher 16383 | -6/Waste | Crushed by Compactor (1 part destroyed, 2 dropped) 16386 | -6/Waste | Crushed by falling debris 16386 | -6/Waste | System corruption reached 10% 16417 | -6/Waste | Lost 6 parts (2n3u1w) 16418 | -6/Waste | Destroyed C-40 Crusher 16421 | -6/Waste | Spotted C-40 Crusher 16425 | -6/Waste | Crushed by falling debris 16425 | -6/Waste | Crushed by Compactor (1 part destroyed, 2 dropped) 16425 | -6/Waste | Found Damper Plating 16456 | -6/Waste | Lost 4 parts (1p1u2w) 16585 | -6/Waste | Build established: Mutant 16900 | -6/Waste | Crushed by Compactor (1 part destroyed) 16930 | -6/Waste | Crushed by Compactor (0 parts destroyed, 1 dropped) 16960 | -6/Waste | Crushed by Compactor (1 part destroyed, 1 dropped) 16961 | -6/Waste | Core integrity fell below 50% 16964 | -6/Waste | Spotted C-40 Crusher 16966 | -6/Waste | Crushed by Compactor (1 part destroyed) 16968 | -6/Waste | Crushed by falling debris 16970 | -6/Waste | Core integrity fell below 20% 16997 | -6/Waste | Lost 3 parts (2u1w) 17001 | -6/Waste | Spotted C-40 Crusher 17007 | -6/Waste | Discovered new exit (range 12) 17012 | -6/Waste | Entered Factory 17548 | -6/Factory | System corruption reached 30% 17553 | -6/Factory | Destroyed by P-60 Hacker with Shock Rifle Last Messages --------------- 17380_ System corrupted: Component data lost. 17397_ System corrupted: Matter fused (-6). 17404_ Acquired Unknown Device. 17404_ Identified Thermal Shield. 17408_ Acquired Imp. Gravmag System. 17413_ System corrupted: Matter fused (-9). 17451_ HIIVA/IRNC1EEGY7NLQ6ET#A,QNA#TNZ8KMN,V< 17451_ Acquired Imp. Gravmag System. 17467_ System corrupted: Component data lost. 17480_ Triggered Proton Bomb Trap. 17480_ A bubble of electromagnetic force engulfs the area. 17480_ Assembly Bed disabled. 17480_ Door malfunctions. 17487_ N&BZ6 PBA6L5WR:HC#TVN6AH|1A